fUST/lending_fUST_20250828
["ID","MTS","AMOUNT","RATE_DAILY","PERIOD"]
[381789104,1756348249291,-721.97,0.00021596,2]
[381789105,1756348249301,-480.0,0.00021596,2]
[381789106,1756348249310,-194.27964619,0.00021596,2]
[381789107,1756348285204,330.71901648,0.000199,2]
[381789108,1756348330345,-220.0,0.00020591,2]
[381789109,1756348330370,-251.31,0.00021253,10]
[381789110,1756348330394,-19528.69,0.00021263,2]
[381789111,1756348454152,247.26762686,0.000199,2]
[381789113,1756348493658,160.0,0.00027397,120]
[381789115,1756348514801,160.0,0.00027397,120]
[381789116,1756348527306,160.0,0.00027397,120]
[381789118,1756348547224,160.0,0.00027397,120]
[381789119,1756348564285,161.0,0.00027397,120]
[381789120,1756348614302,180.0,0.00027397,120]
[381789121,1756348619593,159.0,0.000201,4]
[381789122,1756348624941,318.37748772,0.000199,2]
[381789123,1756348643715,162.0,0.000201,2]
[381789124,1756348656443,162.20401601,0.000201,4]
[381789125,1756348680437,160.1,0.00015984,2]
[381789126,1756348680979,160.08,0.00015984,2]
[381789128,1756348795691,297.15232186,0.000199,2]
[381789134,1756348866642,3146.32,0.0002619,120]
[381789137,1756348966771,277.34216708,0.000199,2]
[381789138,1756348976244,300.0,0.00030629,120]
[381789141,1756349083015,150.0,0.00027397,120]
[381789143,1756349108448,300.0,0.00030629,120]
[381789145,1756349121700,160.0,0.0002,3]
[381789148,1756349135566,300.0,0.00027397,120]
[381789150,1756349139766,258.85268926,0.000199,2]
[381789152,1756349161104,169.003333,0.00013699,2]
[381789167,1756349216176,558.0,0.00027397,120]
[381789170,1756349295726,314.0,0.00027397,120]
[381789172,1756349310456,241.59584332,0.000199,2]
[381789710,1756349438331,-2218.13103276,0.0002115,2]
[381789711,1756349438340,-500.0,0.00021199,2]
[381789712,1756349438349,-500.0,0.00021199,2]
[381789714,1756349438358,-188.03587762,0.00021199,2]
[381789716,1756349438368,-500.0,0.00021199,2]
[381789718,1756349438377,-500.0,0.00021199,2]
[381789720,1756349438386,-500.0,0.00021199,2]
[381789722,1756349438395,-545.24028519,0.00021199,2]
[381789724,1756349438405,-500.0,0.00021199,2]
[381789726,1756349438414,-505.64221393,0.00021199,2]
[381789728,1756349438423,-3485.7454805,0.000212,2]
[381789730,1756349438432,-1076.87,0.00021242,10]
[381789732,1756349438441,-307.0712157,0.00021247,2]
[381789733,1756349438451,-300.0,0.00021247,2]
[381789734,1756349438459,-300.0,0.00021247,2]
[381789735,1756349438469,-300.0,0.00021247,2]
[381789736,1756349438479,-300.0,0.00021247,2]
[381789737,1756349438488,-1200.0,0.00021247,2]
[381789738,1756349438498,-300.0,0.00021247,2]
[381789739,1756349438507,-2434.74389024,0.00021247,2]
[381789740,1756349438516,-26113.04978002,0.00021248,2]
[381789742,1756349438525,-1200.0,0.00021248,2]
[381789743,1756349438535,-480.0,0.00021249,2]
[381789745,1756349438544,-480.13043945,0.00021249,2]
[381789747,1756349438553,-480.0,0.00021249,2]
[381789749,1756349438563,-480.0,0.00021249,2]
[381789751,1756349438572,-480.0,0.00021249,2]
[381789753,1756349438581,-481.24714557,0.00021249,2]
[381789754,1756349438591,-943.6,0.00021249,2]
[381789755,1756349438600,-480.0,0.00021249,2]
[381789757,1756349438609,-480.0,0.00021249,2]
[381789759,1756349438619,-480.0,0.00021249,2]
[381789760,1756349438628,-480.0,0.00021249,2]
[381789762,1756349438638,-1109.47,0.00021249,2]
[381789764,1756349438647,-3485.74548047,0.00021249,2]
[381789766,1756349438656,-483.62,0.0002125,3]
[381789768,1756349438666,-480.0,0.00021251,2]
[381789770,1756349438675,-1039.82,0.00021251,2]
[381789772,1756349438684,-480.0,0.00021251,2]
[381789774,1756349438693,-161.065,0.00021251,2]
[381789776,1756349438702,-480.0,0.00021251,2]
[381789778,1756349438711,-3176.28,0.00021251,2]
[381789780,1756349438721,-2663.66,0.00021251,2]
[381789781,1756349438730,-480.0,0.00021251,2]
[381789782,1756349438739,-480.0,0.00021251,2]
[381789783,1756349438749,-480.0,0.00021251,2]
[381789784,1756349438758,-480.0,0.00021251,2]
[381789785,1756349438767,-480.0,0.00021251,2]
[381789786,1756349438776,-1343.64,0.00021251,2]
[381789787,1756349438786,-1958.36,0.00021251,2]
[381789788,1756349438797,-1138.39,0.00021252,2]
[381789789,1756349438808,-480.0,0.00021252,2]
[381789790,1756349438818,-480.0,0.00021252,2]
[381789791,1756349438828,-480.0,0.00021252,2]
[381789792,1756349438839,-480.0,0.00021252,2]
[381789793,1756349438848,-480.0,0.00021252,2]
[381789794,1756349438859,-480.0,0.00021252,2]
[381789795,1756349438868,-480.0,0.00021252,2]
[381789796,1756349438878,-518.74,0.00021252,2]
[381789797,1756349438887,-480.0,0.00021252,2]
[381789798,1756349438896,-543.76,0.00021252,2]
[381789799,1756349438907,-480.0,0.00021252,2]
[381789800,1756349438917,-480.0,0.00021252,2]
[381789801,1756349438927,-480.0,0.00021252,2]
[381789802,1756349438936,-480.0,0.00021252,2]
[381789803,1756349438946,-480.0,0.00021252,2]
[381789804,1756349438955,-480.0,0.00021252,2]
[381789805,1756349438964,-480.0,0.00021252,2]
[381789806,1756349438978,-480.0,0.00021252,2]
[381789807,1756349438993,-515.45,0.00021252,2]
[381789808,1756349439003,-480.0,0.00021252,2]
[381789809,1756349439012,-480.0,0.00021252,2]
[381789810,1756349439021,-480.0,0.00021252,2]
[381789811,1756349439030,-480.0,0.00021252,2]
[381789812,1756349439039,-480.0,0.00021252,2]
[381789813,1756349439049,-480.0,0.00021252,2]
[381789814,1756349439058,-480.0,0.00021252,2]
[381789815,1756349439067,-480.0,0.00021252,2]
[381789816,1756349439077,-480.0,0.00021252,2]
[381789817,1756349439087,-480.0,0.00021252,2]
[381789818,1756349439096,-480.0,0.00021252,2]
[381789819,1756349439105,-480.0,0.00021252,2]
[381789820,1756349439114,-700.81,0.00021252,2]
[381789821,1756349439123,-480.0,0.00021252,2]
[381789822,1756349439133,-480.0,0.00021252,2]
[381789823,1756349439142,-480.0,0.00021252,2]
[381789824,1756349439151,-489.66,0.00021252,2]
[381789825,1756349439161,-480.0,0.00021252,2]
[381789826,1756349439171,-481.53,0.00021252,2]
[381789827,1756349439180,-480.0,0.00021252,2]
[381789828,1756349439189,-480.0,0.00021252,2]
[381789829,1756349439198,-480.0,0.00021252,2]
[381789830,1756349439208,-480.0,0.00021252,2]
[381789831,1756349439217,-480.0,0.00021252,2]
[381789832,1756349439227,-480.0,0.00021252,2]
[381789833,1756349439238,-480.0,0.00021252,2]
[381789834,1756349439249,-480.0,0.00021252,2]
[381789835,1756349439258,-480.0,0.00021252,2]
[381789836,1756349439267,-480.0,0.00021252,2]
[381789837,1756349439275,-593.97,0.00021252,2]
[381789838,1756349439284,-480.0,0.00021252,2]
[381789839,1756349439294,-480.0,0.00021252,2]
[381789840,1756349439303,-480.0,0.00021252,2]
[381789841,1756349439312,-480.0,0.00021252,2]
[381789842,1756349439321,-480.0,0.00021252,2]
[381789843,1756349439330,-672.76,0.00021252,2]
[381789844,1756349439340,-480.0,0.00021252,2]
[381789845,1756349439349,-480.0,0.00021252,2]
[381789846,1756349439358,-480.0,0.00021252,2]
[381789847,1756349439367,-480.0,0.00021252,2]
[381789848,1756349439377,-480.0,0.00021252,2]
[381789849,1756349439388,-645.64,0.00021252,2]
[381789850,1756349439398,-480.0,0.00021252,2]
[381789851,1756349439407,-518.45795962,0.00021252,2]
[381789852,1756349439417,-629.36,0.00021252,2]
[381789853,1756349439426,-480.0,0.00021252,2]
[381789854,1756349439435,-480.0,0.00021252,2]
[381789855,1756349439445,-480.0,0.00021252,2]
[381789856,1756349439454,-480.0,0.00021252,2]
[381789857,1756349439463,-480.0,0.00021252,2]
[381789858,1756349439473,-480.0,0.00021252,2]
[381789859,1756349439482,-480.0,0.00021252,2]
[381789860,1756349439491,-480.0,0.00021252,2]
[381789861,1756349439500,-480.0,0.00021252,2]
[381789862,1756349439510,-480.0,0.00021252,2]
[381789863,1756349439519,-480.0,0.00021252,2]
[381789864,1756349439528,-480.0,0.00021252,2]
[381789865,1756349439537,-480.0,0.00021252,2]
[381789866,1756349439547,-480.0,0.00021252,2]
[381789867,1756349439557,-480.0,0.00021252,2]
[381789868,1756349439566,-480.0,0.00021252,2]
[381789869,1756349439575,-480.0,0.00021252,2]
[381789870,1756349439586,-480.0,0.00021252,2]
[381789871,1756349439595,-480.0,0.00021252,2]
[381789872,1756349439604,-3026.62,0.00021252,2]
[381789873,1756349439613,-369.15194008,0.00021252,2]
[381789874,1756349439623,-480.0,0.00021252,2]
[381789875,1756349439632,-480.0,0.00021252,2]
[381789876,1756349439641,-480.0,0.00021252,2]
[381789877,1756349439651,-480.0,0.00021252,2]
[381789878,1756349439661,-480.0,0.00021252,2]
[381789879,1756349439672,-480.0,0.00021252,2]
[381789880,1756349439681,-480.0,0.00021252,2]
[381789881,1756349439691,-480.0,0.00021252,2]
[381789882,1756349439700,-480.0,0.00021252,2]
[381789883,1756349439709,-4756.34,0.00021252,2]
[381789884,1756349439719,-480.0,0.00021252,2]
[381789885,1756349439728,-480.0,0.00021252,2]
[381789886,1756349439739,-480.0,0.00021252,2]
[381789887,1756349439748,-480.0,0.00021252,2]
[381789888,1756349439758,-480.0,0.00021252,2]
[381789889,1756349439769,-480.0,0.00021252,2]
[381789890,1756349439778,-480.0,0.00021252,2]
[381789891,1756349439788,-480.0,0.00021252,2]
[381789893,1756349439798,-480.0,0.00021252,2]
[381789894,1756349439807,-2579.15,0.00021253,3]
[381789895,1756349439816,-1289.57,0.00021253,3]
[381789896,1756349439825,-644.79,0.00021253,3]
[381789897,1756349439834,-322.39,0.00021253,3]
[381789898,1756349439843,-161.2,0.00021253,3]
[381789900,1756349439853,-480.0,0.00021259,2]
[381789901,1756349439862,-528.24,0.00021259,2]
[381789902,1756349439872,-675.85,0.00021259,2]
[381789903,1756349439882,-480.0,0.00021259,2]
[381789904,1756349439891,-3761.07,0.00021259,2]
[381789905,1756349439900,-4816.53,0.00021259,2]
[381789906,1756349439912,-1382.68,0.00021259,2]
[381789907,1756349439921,-610.48,0.00021259,2]
[381789908,1756349439930,-480.0,0.00021259,2]
[381789909,1756349439940,-480.0,0.00021259,2]
[381789911,1756349439951,-1798.21,0.00021259,2]
[381789913,1756349439960,-480.0,0.00021259,2]
[381789915,1756349439969,-816.31,0.00021259,2]
[381789917,1756349439979,-480.0,0.00021259,2]
[381789919,1756349439990,-865.51,0.00021259,2]
[381789921,1756349440001,-830.41,0.00021259,2]
[381789923,1756349440010,-1635.42,0.00021259,2]
[381789925,1756349440020,-641.47,0.00021259,2]
[381789927,1756349440030,-480.0,0.00021259,2]
[381789929,1756349440039,-822.72,0.00021259,2]
[381789931,1756349440048,-1066.42,0.00021259,2]
[381789933,1756349440057,-480.0,0.00021259,2]
[381789935,1756349440067,-480.0,0.00021259,2]
[381789937,1756349440076,-1743.44,0.00021259,2]
[381789940,1756349440087,-1911.26,0.00021259,2]
[381789942,1756349440096,-1843.96,0.00021259,2]
[381789944,1756349440105,-480.0,0.0002126,2]
[381789946,1756349440114,-480.0,0.0002126,2]
[381789948,1756349440124,-612.22,0.0002126,2]
[381789949,1756349440134,-782.02,0.0002126,2]
[381789951,1756349440144,-480.0,0.0002126,2]
[381789953,1756349440153,-480.0,0.0002126,2]
[381789956,1756349440163,-480.0,0.0002126,2]
[381789958,1756349440172,-480.0,0.0002126,2]
[381789960,1756349440182,-816.76,0.0002126,2]
[381789962,1756349440191,-480.0,0.0002126,2]
[381789964,1756349440200,-1180.3,0.0002126,2]
[381789966,1756349440210,-1780.45,0.0002126,2]
[381789968,1756349440219,-986.99,0.0002126,2]
[381789969,1756349440228,-480.0,0.0002126,2]
[381789971,1756349440237,-480.0,0.0002126,2]
[381789973,1756349440247,-623.11,0.0002126,2]
[381789975,1756349440256,-480.0,0.0002126,2]
[381789977,1756349440265,-480.0,0.0002126,2]
[381789979,1756349440275,-563.81,0.0002126,2]
[381789981,1756349440284,-480.0,0.0002126,2]
[381789983,1756349440293,-480.0,0.0002126,2]
[381789985,1756349440303,-590.45,0.0002126,2]
[381789988,1756349440312,-482.83406825,0.0002126,2]
[381789990,1756349440321,-500.0,0.0002126,2]
[381789992,1756349440331,-805.78,0.0002126,2]
[381789994,1756349440340,-480.0,0.0002126,2]
[381789995,1756349440349,-820.55,0.0002126,2]
[381789998,1756349440359,-480.0,0.0002126,2]
[381790000,1756349440368,-559.45,0.0002126,2]
[381790001,1756349440378,-480.0,0.0002126,2]
[381790003,1756349440387,-537.55,0.0002126,2]
[381790005,1756349440396,-913.24,0.0002126,2]
[381790007,1756349440405,-1311.03,0.0002126,2]
[381790010,1756349440417,-612.06,0.0002126,2]
[381790012,1756349440426,-480.0,0.0002126,2]
[381790014,1756349440435,-480.0,0.0002126,2]
[381790016,1756349440444,-1313.51,0.0002126,2]
[381790018,1756349440453,-641.96,0.0002126,2]
[381790020,1756349440462,-1803.04,0.0002126,2]
[381790022,1756349440471,-1179.76,0.0002126,2]
[381790023,1756349440480,-480.0,0.0002126,2]
[381790025,1756349440489,-480.0,0.0002126,2]
[381790027,1756349440499,-480.0,0.0002126,2]
[381790030,1756349440508,-480.0,0.0002126,2]
[381790032,1756349440517,-480.0,0.0002126,2]
[381790034,1756349440527,-541.07,0.0002126,2]
[381790036,1756349440536,-912.64,0.0002126,2]
[381790058,1756349440729,-592.67,0.0002126,2]
[381790060,1756349440741,-636.88,0.0002126,2]
[381790062,1756349440751,-1082.99,0.0002126,2]
[381790064,1756349440760,-530.42,0.0002126,2]
[381790066,1756349440772,-480.0,0.0002126,2]
[381790068,1756349440781,-608.02,0.0002126,2]
[381790070,1756349440790,-562.61,0.0002126,2]
[381790072,1756349440799,-747.78,0.0002126,2]
[381790074,1756349440808,-480.0,0.0002126,2]
[381790076,1756349440817,-480.0,0.0002126,2]
[381790078,1756349440826,-544.99,0.0002126,2]
[381790080,1756349440835,-532.04,0.0002126,2]
[381790082,1756349440844,-480.0,0.0002126,2]
[381790084,1756349440854,-848.09,0.0002126,2]
[381790086,1756349440863,-480.0,0.0002126,2]
[381790088,1756349440873,-480.0,0.0002126,2]
[381790090,1756349440882,-269.25690607,0.0002126,2]
[381790092,1756349440891,-483.11382143,0.0002126,2]
[381790094,1756349440900,-480.0,0.0002126,2]
[381790096,1756349440912,-480.0,0.0002126,2]
[381790098,1756349440922,-531.28,0.0002126,2]
[381790100,1756349440931,-480.0,0.0002126,2]
[381790102,1756349440941,-1001.36,0.0002126,2]
[381790104,1756349440950,-156.57748121,0.0002126,2]
[381790106,1756349440961,-480.0,0.0002126,2]
[381790108,1756349440970,-1296.82,0.0002126,2]
[381790110,1756349440979,-480.0,0.0002126,2]
[381790112,1756349440989,-480.0,0.0002126,2]
[381790114,1756349440999,-1509.25,0.0002126,2]
[381790116,1756349441009,-480.0,0.0002126,2]
[381790118,1756349441018,-480.0,0.0002126,2]
[381790120,1756349441027,-1227.52,0.0002126,2]
[381790122,1756349441037,-480.0,0.0002126,2]
[381790124,1756349441046,-480.0,0.0002126,2]
[381790126,1756349441055,-692.45,0.0002126,2]
[381790128,1756349441064,-480.0,0.0002126,2]
[381790130,1756349441073,-480.0,0.0002126,2]
[381790132,1756349441083,-480.0,0.0002126,2]
[381790134,1756349441092,-480.0,0.0002126,2]
[381790137,1756349441101,-480.0,0.0002126,2]
[381790139,1756349441111,-480.0,0.0002126,2]
[381790141,1756349441120,-1627.98,0.0002126,2]
[381790143,1756349441129,-797.47,0.0002126,2]
[381790145,1756349441138,-530.51,0.0002126,2]
[381790147,1756349441147,-639.97,0.0002126,2]
[381790149,1756349441156,-480.0,0.0002126,2]
[381790151,1756349441166,-480.0,0.0002126,2]
[381790153,1756349441176,-547.29,0.0002126,2]
[381790155,1756349441185,-480.0,0.0002126,2]
[381790157,1756349441194,-480.0,0.0002126,2]
[381790159,1756349441204,-480.0,0.0002126,2]
[381790161,1756349441214,-480.0,0.0002126,2]
[381790163,1756349441223,-480.0,0.0002126,2]
[381790165,1756349441232,-480.0,0.0002126,2]
[381790167,1756349441242,-480.0,0.0002126,2]
[381790169,1756349441251,-480.0,0.0002126,2]
[381790171,1756349441261,-1575.32,0.0002126,2]
[381790173,1756349441270,-480.0,0.0002126,2]
[381790175,1756349441279,-480.0,0.0002126,2]
[381790177,1756349441288,-480.0,0.0002126,2]
[381790179,1756349441298,-830.85,0.0002126,2]
[381790181,1756349441307,-1063.16,0.0002126,2]
[381790183,1756349441316,-2037.56,0.0002126,2]
[381790185,1756349441325,-480.0,0.0002126,2]
[381790187,1756349441336,-480.0,0.0002126,2]
[381790189,1756349441345,-480.0,0.0002126,2]
[381790191,1756349441354,-553.47,0.0002126,2]
[381790193,1756349441363,-480.0,0.0002126,2]
[381790195,1756349441372,-480.0,0.0002126,2]
[381790197,1756349441381,-1427.95,0.0002126,2]
[381790199,1756349441391,-480.0,0.0002126,2]
[381790201,1756349441400,-480.0,0.0002126,2]
[381790203,1756349441409,-612.77701107,0.0002126,2]
[381790205,1756349441419,-4259.0,0.0002126,2]
[381790207,1756349441428,-4072.14,0.0002126,2]
[381790209,1756349441438,-480.0,0.0002126,2]
[381790211,1756349441447,-480.0,0.0002126,2]
[381790213,1756349441456,-480.0,0.0002126,2]
[381790215,1756349441465,-480.0,0.0002126,2]
[381790217,1756349441475,-480.0,0.0002126,2]
[381790219,1756349441484,-480.0,0.0002126,2]
[381790221,1756349441493,-480.0,0.0002126,2]
[381790223,1756349441503,-480.0,0.0002126,2]
[381790225,1756349441512,-536.6,0.0002126,2]
[381790227,1756349441521,-2386.94,0.0002126,2]
[381790229,1756349441530,-480.0,0.0002126,2]
[381790231,1756349441540,-480.0,0.0002126,2]
[381790233,1756349441549,-662.05,0.0002126,2]
[381790235,1756349441558,-480.0,0.0002126,2]
[381790236,1756349441567,-480.0,0.0002126,2]
[381790237,1756349441576,-480.0,0.0002126,2]
[381790238,1756349441586,-696.16,0.0002126,2]
[381790239,1756349441595,-204.501504,0.0002126,10]
[381790240,1756349441604,-480.0,0.0002126,2]
[381790241,1756349441613,-1252.51,0.0002126,2]
[381790242,1756349441624,-670.53,0.0002126,2]
[381790243,1756349441634,-480.0,0.00021263,2]
[381790244,1756349441643,-480.0,0.00021263,2]
[381790245,1756349441653,-5355.97,0.00021263,2]
[381790246,1756349441662,-480.0,0.00021263,2]
[381790247,1756349441671,-2799.3,0.00021263,2]
[381790248,1756349441680,-674.45,0.00021263,2]
[381790249,1756349441689,-1313.69,0.00021263,2]
[381790250,1756349441698,-5135.59,0.00021263,2]
[381790251,1756349441707,-480.0,0.00021263,2]
[381790252,1756349441716,-480.0,0.00021263,2]
[381790253,1756349441725,-695.19,0.00021263,2]
[381790254,1756349441734,-1729.31,0.00021263,2]
[381790255,1756349441743,-1032.57,0.00021263,2]
[381790256,1756349441752,-480.0,0.00021263,2]
[381790258,1756349441761,-480.0,0.00021263,2]
[381790260,1756349441771,-661.43,0.00021263,2]
[381790262,1756349441780,-500.0,0.00021263,2]
[381790264,1756349441789,-168.0,0.00021277,2]
[381790266,1756349441798,-14036.47382209,0.00021294,2]
[381790268,1756349441807,-1000.0,0.00021295,2]
[381790270,1756349441816,-3485.74548047,0.00021299,2]
[381790272,1756349441826,-151.0,0.000213,3]
[381790274,1756349441838,-151.0,0.000213,4]
[381790276,1756349441848,-151.0,0.000213,4]
[381790278,1756349441860,-151.0,0.000213,4]
[381790280,1756349441871,-151.0,0.000213,3]
[381790282,1756349441880,-2524.82941417,0.00021302,2]
[381790284,1756349441889,-168.0,0.00021315,2]
[381790286,1756349441898,-173.65115485,0.00021327,2]
[381790288,1756349441908,-3485.74548047,0.00021348,2]
[381790290,1756349441921,-323.0,0.00021353,2]
[381790292,1756349441930,-2618.2481025,0.00021357,2]
[381790294,1756349441939,-151.0,0.0002136,2]
[381790296,1756349441950,-151.0,0.0002136,2]
[381790298,1756349441959,-194.72792766,0.0002136,2]
[381790300,1756349441967,-151.0,0.0002136,2]
[381790302,1756349441977,-151.0,0.0002136,2]
[381790304,1756349441986,-151.0,0.0002136,2]
[381790306,1756349441996,-151.0,0.0002136,2]
[381790308,1756349442006,-151.0,0.0002136,2]
[381790310,1756349442015,-151.0,0.0002136,2]
[381790312,1756349442025,-151.0,0.0002136,2]
[381790314,1756349442034,-151.0,0.0002136,2]
[381790316,1756349442044,-151.0,0.0002136,2]
[381790318,1756349442053,-163.79948588,0.0002136,2]
[381790320,1756349442062,-151.0,0.0002136,2]
[381790322,1756349442072,-151.0,0.0002136,2]
[381790325,1756349442081,-151.0,0.0002136,2]
[381790327,1756349442091,-151.0,0.0002136,2]
[381790329,1756349442100,-151.0,0.0002136,2]
[381790331,1756349442110,-151.0,0.0002136,2]
[381790332,1756349442119,-151.0,0.0002136,2]
[381790335,1756349442128,-151.0,0.0002136,2]
[381790337,1756349442137,-500.0,0.00021373,2]
[381790338,1756349442146,-512.77059871,0.00021373,2]
[381790340,1756349442157,-500.0,0.00021373,2]
[381790342,1756349442166,-500.0,0.00021373,2]
[381790345,1756349442175,-504.0850482,0.00021373,2]
[381790347,1756349442185,-500.0,0.00021373,2]
[381790349,1756349442194,-500.0,0.00021373,2]
[381790351,1756349442203,-500.0,0.00021373,2]
[381790353,1756349442212,-500.0,0.00021373,2]
[381790355,1756349442221,-500.0,0.00021373,2]
[381790357,1756349442230,-212.63853515,0.00021373,2]
[381790359,1756349442239,-502.40966076,0.00021373,2]
[381790361,1756349442249,-500.73589259,0.00021373,2]
[381790363,1756349442258,-500.0,0.00021373,2]
[381790365,1756349442267,-500.0,0.00021373,2]
[381790367,1756349442276,-368.95975832,0.00021373,2]
[381790369,1756349442285,-500.0,0.00021373,2]
[381790371,1756349442294,-500.0,0.00021373,2]
[381790373,1756349442303,-502.64043492,0.00021373,2]
[381790375,1756349442312,-500.0,0.00021373,2]
[381790377,1756349442321,-500.0,0.00021373,2]
[381790379,1756349442330,-500.0,0.00021373,2]
[381790381,1756349442340,-500.0,0.00021373,2]
[381790383,1756349442349,-500.0,0.00021373,2]
[381790385,1756349442358,-370000.0,0.00021373,2]
[381790387,1756349442367,-588.25635791,0.00021385,2]
[381790389,1756349442376,-405.99502677,0.0002139,2]
[381790391,1756349442385,-481.21204569,0.00021394,2]
[381790393,1756349442395,-480.0,0.00021394,2]
[381790395,1756349442403,-480.0,0.00021394,2]
[381790397,1756349442412,-480.0,0.00021394,2]
[381790399,1756349442421,-480.0,0.00021394,2]
[381790401,1756349442431,-480.0,0.00021394,2]
[381790403,1756349442440,-480.0,0.00021394,2]
[381790405,1756349442449,-482.0766652,0.00021394,2]
[381790407,1756349442458,-497.22,0.00021394,2]
[381790409,1756349442467,-480.0,0.00021394,2]
[381790411,1756349442477,-480.0,0.00021394,2]
[381790413,1756349442487,-480.0,0.00021394,2]
[381790415,1756349442496,-480.0,0.00021394,2]
[381790417,1756349442505,-530.32,0.00021394,2]
[381790419,1756349442515,-480.0,0.00021394,2]
[381790421,1756349442524,-694.23,0.00021394,2]
[381790423,1756349442534,-276.01367867,0.00021394,2]
[381790425,1756349442545,-480.0,0.00021394,2]
[381790427,1756349442555,-480.0,0.00021394,2]
[381790429,1756349442564,-480.0,0.00021394,2]
[381790431,1756349442573,-811.88,0.00021394,2]
[381790433,1756349442582,-480.0,0.00021394,2]
[381790435,1756349442592,-480.0,0.00021394,2]
[381790437,1756349442601,-480.0,0.00021394,2]
[381790439,1756349442611,-673.45,0.00021394,2]
[381790441,1756349442620,-480.0,0.00021394,2]
[381790443,1756349442629,-483.8998022,0.00021394,2]
[381790445,1756349442639,-480.0,0.00021394,2]
[381790447,1756349442648,-480.0,0.00021394,2]
[381790449,1756349442657,-480.0,0.00021394,2]
[381790453,1756349442667,-480.0,0.00021394,2]
[381790456,1756349442676,-509.04,0.00021394,2]
[381790459,1756349442685,-480.0,0.00021394,2]
[381790462,1756349442694,-480.0,0.00021394,2]
[381790465,1756349442703,-480.0,0.00021394,2]
[381790468,1756349442713,-480.0,0.00021394,2]
[381790471,1756349442722,-529.78,0.00021394,2]
[381790473,1756349442731,-480.0,0.00021394,2]
[381790475,1756349442740,-480.0,0.00021394,2]
[381790477,1756349442750,-443.23879149,0.00021394,2]
[381790479,1756349442760,-480.0,0.00021394,2]
[381790481,1756349442770,-480.0,0.00021394,2]
[381790483,1756349442780,-480.0,0.00021394,2]
[381790485,1756349442789,-308.55461164,0.00021394,2]
[381790488,1756349442799,-480.0,0.00021394,2]
[381790490,1756349442807,-480.0,0.00021394,2]
[381790493,1756349442817,-480.0,0.00021394,2]
[381790496,1756349442826,-480.0,0.00021394,2]
[381790499,1756349442836,-480.0,0.00021394,2]
[381790502,1756349442845,-480.0,0.00021394,2]
[381790504,1756349442854,-480.0,0.00021394,2]
[381790506,1756349442863,-487.66,0.00021394,2]
[381790509,1756349442873,-480.0,0.00021394,2]
[381790511,1756349442884,-480.0,0.00021394,2]
[381790513,1756349442894,-480.0,0.00021394,2]
[381790515,1756349442905,-480.0,0.00021394,2]
[381790517,1756349442918,-480.0,0.00021394,2]
[381790519,1756349442927,-480.0,0.00021394,2]